{"text_format":"3","workbook":"xlsx","n_sheets":3,"sheets":["Address book","Database","Instructions"],"read":"whole","date_system":"1900"}

{"sheet":"Address book","index":0,"n_rows":21,"n_cols":12,"rows_kept":21,"merged":[[1,4,1,9],[5,6,13,13],[10,3,10,4],[11,3,11,4]]}
[]
[{"$nulls":4},"Personal address and telephone book"]
[null,"Insert name",{"$nulls":8},{"$f":"TODAY()","v":"2009-12-21"}]
[{"$nulls":6},"Notepad"]
[{"$nulls":3},{"$f":"IF($D$3=\"\",\"\",VLOOKUP($D$3,Database!$A$2:'Database'!$F$200,2,FALSE))","v":""},{"$f":"IF($D$3=\"\",\"\",VLOOKUP($D$3,Database!$A$2:'Database'!$F$200,3,FALSE))","v":""}]
[{"$nulls":3},{"$f":"IF($D$3=\"\",\"\",VLOOKUP($D$3,Database!$A$2:'Database'!$F$200,4,FALSE))","v":""}]
[{"$nulls":3},{"$f":"IF($D$3=\"\",\"\",VLOOKUP($D$3,Database!$A$2:'Database'!$F$200,5,FALSE))","v":""}]
[{"$nulls":3},{"$f":"IF($D$3=\"\",\"\",VLOOKUP($D$3,Database!$A$2:'Database'!$F$200,6,FALSE))","v":""}]
[{"$nulls":3},{"$f":"IF($D$3=\"\",\"\",VLOOKUP($D$3,Database!$K$2:'Database'!$M$200,2,FALSE))","v":""}]
[]
[null,"Telephone",null,{"$f":"IF($D$3=\"\",\"\",VLOOKUP($D$3,Database!$K$2:'Database'!$M$200,3,FALSE))","v":""}]
[null,"Fax",null,{"$f":"IF($D$3=\"\",\"\",VLOOKUP($D$3,Database!$K$2:'Database'!$O$200,4,FALSE))","v":""}]
[null,"email",null,{"$f":"IF($D$3=\"\",\"\",VLOOKUP($D$3,Database!$K$2:'Database'!$O$200,5,FALSE))","v":""}]
[]
[null,"Favourites",{"$nulls":7},"Tel","Fax"]
[{"$nulls":3},{"$f":"IF($B$16=\"\",\"\",VLOOKUP($B$16,Database!$A$2:'Database'!$F$200,2,FALSE))","v":""},{"$f":"IF($B$16=\"\",\"\",VLOOKUP($B$16,Database!$A$2:'Database'!$F$200,3,FALSE))","v":""},{"$f":"IF($B$16=\"\",\"\",VLOOKUP($B$16,Database!$A$2:'Database'!$F$200,4,FALSE))","v":""},{"$f":"IF($B$16=\"\",\"\",VLOOKUP($B$16,Database!$A$2:'Database'!$F$200,5,FALSE))","v":""},{"$f":"IF($B$16=\"\",\"\",VLOOKUP($B$16,Database!$A$2:'Database'!$F$200,6,FALSE))","v":""},{"$f":"IF($B$16=\"\",\"\",VLOOKUP($B$16,Database!$K$2:'Database'!$M$200,2,FALSE))","v":""},{"$f":"IF($B$16=\"\",\"\",VLOOKUP($B$16,Database!$K$2:'Database'!$M$200,3,FALSE))","v":""},{"$f":"IF($B$16=\"\",\"\",VLOOKUP($B$16,Database!$K$2:'Database'!$O$200,4,FALSE))","v":""},{"$f":"IF($B$16=\"\",\"\",VLOOKUP($B$16,Database!$K$2:'Database'!$O$200,5,FALSE))","v":""}]
[{"$nulls":3},{"$f":"IF($B$17=\"\",\"\",VLOOKUP($B$17,Database!$A$2:'Database'!$F$200,2,FALSE))","v":""},{"$f":"IF($B$17=\"\",\"\",VLOOKUP($B$17,Database!$A$2:'Database'!$F$200,3,FALSE))","v":""},{"$f":"IF($B$17=\"\",\"\",VLOOKUP($B$17,Database!$A$2:'Database'!$F$200,4,FALSE))","v":""},{"$f":"IF($B$17=\"\",\"\",VLOOKUP($B$17,Database!$A$2:'Database'!$F$200,5,FALSE))","v":""},{"$f":"IF($B$17=\"\",\"\",VLOOKUP($B$17,Database!$A$2:'Database'!$F$200,6,FALSE))","v":""},{"$f":"IF($B$17=\"\",\"\",VLOOKUP($B$17,Database!$K$2:'Database'!$M$200,2,FALSE))","v":""},{"$f":"IF($B$17=\"\",\"\",VLOOKUP($B$17,Database!$K$2:'Database'!$M$200,3,FALSE))","v":""},{"$f":"IF($B$17=\"\",\"\",VLOOKUP($B$17,Database!$K$2:'Database'!$O$200,4,FALSE))","v":""},{"$f":"IF($B$17=\"\",\"\",VLOOKUP($B$17,Database!$K$2:'Database'!$O$200,5,FALSE))","v":""}]
[{"$nulls":3},{"$f":"IF($B$18=\"\",\"\",VLOOKUP($B$18,Database!$A$2:'Database'!$F$200,2,FALSE))","v":""},{"$f":"IF($B$18=\"\",\"\",VLOOKUP($B$18,Database!$A$2:'Database'!$F$200,3,FALSE))","v":""},{"$f":"IF($B$18=\"\",\"\",VLOOKUP($B$18,Database!$A$2:'Database'!$F$200,4,FALSE))","v":""},{"$f":"IF($B$18=\"\",\"\",VLOOKUP($B$18,Database!$A$2:'Database'!$F$200,5,FALSE))","v":""},{"$f":"IF($B$18=\"\",\"\",VLOOKUP($B$18,Database!$A$2:'Database'!$F$200,6,FALSE))","v":""},{"$f":"IF($B$18=\"\",\"\",VLOOKUP($B$18,Database!$K$2:'Database'!$M$200,2,FALSE))","v":""},{"$f":"IF($B$18=\"\",\"\",VLOOKUP($B$18,Database!$K$2:'Database'!$M$200,3,FALSE))","v":""},{"$f":"IF($B$18=\"\",\"\",VLOOKUP($B$18,Database!$K$2:'Database'!$O$200,4,FALSE))","v":""},{"$f":"IF($B$18=\"\",\"\",VLOOKUP($B$18,Database!$K$2:'Database'!$O$200,5,FALSE))","v":""}]
[{"$nulls":3},{"$f":"IF($B$19=\"\",\"\",VLOOKUP($B$19,Database!$A$2:'Database'!$F$200,2,FALSE))","v":""},{"$f":"IF($B$19=\"\",\"\",VLOOKUP($B$19,Database!$A$2:'Database'!$F$200,3,FALSE))","v":""},{"$f":"IF($B$19=\"\",\"\",VLOOKUP($B$19,Database!$A$2:'Database'!$F$200,4,FALSE))","v":""},{"$f":"IF($B$19=\"\",\"\",VLOOKUP($B$19,Database!$A$2:'Database'!$F$200,5,FALSE))","v":""},{"$f":"IF($B$19=\"\",\"\",VLOOKUP($B$19,Database!$A$2:'Database'!$F$200,6,FALSE))","v":""},{"$f":"IF($B$19=\"\",\"\",VLOOKUP($B$19,Database!$K$2:'Database'!$M$200,2,FALSE))","v":""},{"$f":"IF($B$19=\"\",\"\",VLOOKUP($B$19,Database!$K$2:'Database'!$M$200,3,FALSE))","v":""},{"$f":"IF($B$19=\"\",\"\",VLOOKUP($B$19,Database!$K$2:'Database'!$O$200,4,FALSE))","v":""},{"$f":"IF($B$19=\"\",\"\",VLOOKUP($B$19,Database!$K$2:'Database'!$O$200,5,FALSE))","v":""}]
[{"$nulls":3},{"$f":"IF($B$20=\"\",\"\",VLOOKUP($B$20,Database!$A$2:'Database'!$F$200,2,FALSE))","v":""},{"$f":"IF($B$20=\"\",\"\",VLOOKUP($B$20,Database!$A$2:'Database'!$F$200,3,FALSE))","v":""},{"$f":"IF($B$20=\"\",\"\",VLOOKUP($B$20,Database!$A$2:'Database'!$F$200,4,FALSE))","v":""},{"$f":"IF($B$20=\"\",\"\",VLOOKUP($B$20,Database!$A$2:'Database'!$F$200,5,FALSE))","v":""},{"$f":"IF($B$20=\"\",\"\",VLOOKUP($B$20,Database!$A$2:'Database'!$F$200,6,FALSE))","v":""},{"$f":"IF($B$20=\"\",\"\",VLOOKUP($B$20,Database!$K$2:'Database'!$M$200,2,FALSE))","v":""},{"$f":"IF($B$20=\"\",\"\",VLOOKUP($B$20,Database!$K$2:'Database'!$M$200,3,FALSE))","v":""},{"$f":"IF($B$20=\"\",\"\",VLOOKUP($B$20,Database!$K$2:'Database'!$O$200,4,FALSE))","v":""},{"$f":"IF($B$20=\"\",\"\",VLOOKUP($B$20,Database!$K$2:'Database'!$O$200,5,FALSE))","v":""}]
[{"$nulls":3},{"$f":"IF($B$21=\"\",\"\",VLOOKUP($B$21,Database!$A$2:'Database'!$F$200,2,FALSE))","v":""},{"$f":"IF($B$21=\"\",\"\",VLOOKUP($B$21,Database!$A$2:'Database'!$F$200,3,FALSE))","v":""},{"$f":"IF($B$21=\"\",\"\",VLOOKUP($B$21,Database!$A$2:'Database'!$F$200,4,FALSE))","v":""},{"$f":"IF($B$21=\"\",\"\",VLOOKUP($B$21,Database!$A$2:'Database'!$F$200,5,FALSE))","v":""},{"$f":"IF($B$21=\"\",\"\",VLOOKUP($B$21,Database!$A$2:'Database'!$F$200,6,FALSE))","v":""},{"$f":"IF($B$21=\"\",\"\",VLOOKUP($B$21,Database!$K$2:'Database'!$M$200,2,FALSE))","v":""},{"$f":"IF($B$21=\"\",\"\",VLOOKUP($B$21,Database!$K$2:'Database'!$M$200,3,FALSE))","v":""},{"$f":"IF($B$21=\"\",\"\",VLOOKUP($B$21,Database!$K$2:'Database'!$O$200,4,FALSE))","v":""},{"$f":"IF($B$21=\"\",\"\",VLOOKUP($B$21,Database!$K$2:'Database'!$O$200,5,FALSE))","v":""}]

{"sheet":"Database","index":1,"n_rows":200,"n_cols":18,"rows_kept":200}
["Name","1st Name","2nd Name","No & street","Town","State/County","Zip/Postcode","Telephone","Fax","email",{"$nulls":7},"DO NOT ADD COLUMNS"]
[{"$nulls":10},{"$f":"A2","v":0},{"$f":"G2","v":0},{"$f":"H2","v":0},{"$f":"I2","v":0},{"$f":"J2","v":0},null,null,"DO NOT DELETE BEYOND COLUMN J"]
[{"$nulls":10},0,0,0,0,0,null,null,"DO NOT DELETE BEYOND COLUMN J"]
[{"$nulls":10},0,0,0,0,0,null,null,"DO NOT DELETE BEYOND COLUMN J"]
[{"$nulls":10},0,0,0,0,0,null,null,"DO NOT DELETE BEYOND COLUMN J"]
[{"$nulls":10},0,0,0,0,0,null,null,"DO NOT DELETE BEYOND COLUMN J"]
[{"$nulls":10},0,0,0,0,0,null,null,"DO NOT DELETE BEYOND COLUMN J"]
[{"$nulls":10},0,0,0,0,0,null,null,"DO NOT DELETE BEYOND COLUMN J"]
[{"$nulls":10},0,0,0,0,0,null,null,"DO NOT DELETE BEYOND COLUMN J"]
[{"$nulls":10},0,0,0,0,0,null,null,"DO NOT DELETE BEYOND COLUMN J"]
[{"$nulls":10},0,0,0,0,0,null,null,"DO NOT DELETE BEYOND COLUMN J"]
[{"$nulls":10},0,0,0,0,0,null,null,"DO NOT DELETE BEYOND COLUMN J"]
[{"$nulls":10},0,0,0,0,0,null,null,"DO NOT DELETE BEYOND COLUMN J"]
[{"$nulls":10},0,0,0,0,0,null,null,"DO NOT DELETE BEYOND COLUMN J"]
[{"$nulls":10},0,0,0,0,0,null,null,"DO NOT DELETE BEYOND COLUMN J"]
[{"$nulls":10},0,0,0,0,0,null,null,"DO NOT DELETE BEYOND COLUMN J"]
[{"$nulls":10},0,0,0,0,0,null,null,"DO NOT DELETE BEYOND COLUMN J"]
[{"$nulls":10},0,0,0,0,0,null,null,"DO NOT DELETE BEYOND COLUMN J"]
[{"$nulls":10},0,0,0,0,0,null,null,"DO NOT DELETE BEYOND COLUMN J"]
[{"$nulls":10},0,0,0,0,0,null,null,"DO NOT DELETE BEYOND COLUMN J"]
[{"$nulls":10},0,0,0,0,0,null,null,"DO NOT DELETE BEYOND COLUMN J"]
[{"$nulls":10},0,0,0,0,0,null,null,"DO NOT DELETE BEYOND COLUMN J"]
[{"$nulls":10},0,0,0,0,0,null,null,"DO NOT DELETE BEYOND COLUMN J"]
[{"$nulls":10},0,0,0,0,0,null,null,"DO NOT DELETE BEYOND COLUMN J"]
[{"$nulls":10},0,0,0,0,0,null,null,"DO NOT DELETE BEYOND COLUMN J"]
[{"$nulls":10},0,0,0,0,0,null,null,"DO NOT DELETE BEYOND COLUMN J"]
[{"$nulls":10},0,0,0,0,0,null,null,"DO NOT DELETE BEYOND COLUMN J"]
[{"$nulls":10},0,0,0,0,0,null,null,"DO NOT DELETE BEYOND COLUMN J"]
[{"$nulls":10},0,0,0,0,0,null,null,"DO NOT DELETE BEYOND COLUMN J"]
[{"$nulls":10},0,0,0,0,0,null,null,"DO NOT DELETE BEYOND COLUMN J"]
[{"$nulls":10},0,0,0,0,0,null,null,"DO NOT DELETE BEYOND COLUMN J"]
[{"$nulls":10},0,0,0,0,0,null,null,"DO NOT DELETE BEYOND COLUMN J"]
[{"$nulls":10},0,0,0,0,0,null,null,"DO NOT DELETE BEYOND COLUMN J"]
[{"$nulls":10},{"$f":"A34","v":0},{"$f":"G34","v":0},{"$f":"H34","v":0},{"$f":"I34","v":0},{"$f":"J34","v":0},null,null,"DO NOT DELETE BEYOND COLUMN J"]
[{"$nulls":10},0,0,0,0,0,null,null,"DO NOT DELETE BEYOND COLUMN J"]
[{"$nulls":10},0,0,0,0,0,null,null,"DO NOT DELETE BEYOND COLUMN J"]
[{"$nulls":10},0,0,0,0,0,null,null,"DO NOT DELETE BEYOND COLUMN J"]
[{"$nulls":10},0,0,0,0,0,null,null,"DO NOT DELETE BEYOND COLUMN J"]
[{"$nulls":10},0,0,0,0,0,null,null,"DO NOT DELETE BEYOND COLUMN J"]
[{"$nulls":10},0,0,0,0,0,null,null,"DO NOT DELETE BEYOND COLUMN J"]
[{"$nulls":10},0,0,0,0,0,null,null,"DO NOT DELETE BEYOND COLUMN J"]
[{"$nulls":10},0,0,0,0,0,null,null,"DO NOT DELETE BEYOND COLUMN J"]
[{"$nulls":10},0,0,0,0,0,null,null,"DO NOT DELETE BEYOND COLUMN J"]
[{"$nulls":10},0,0,0,0,0,null,null,"DO NOT DELETE BEYOND COLUMN J"]
[{"$nulls":10},0,0,0,0,0,null,null,"DO NOT DELETE BEYOND COLUMN J"]
[{"$nulls":10},0,0,0,0,0,null,null,"DO NOT DELETE BEYOND COLUMN J"]
[{"$nulls":10},0,0,0,0,0,null,null,"DO NOT DELETE BEYOND COLUMN J"]
[{"$nulls":10},0,0,0,0,0,null,null,"DO NOT DELETE BEYOND COLUMN J"]
[{"$nulls":10},0,0,0,0,0,null,null,"DO NOT DELETE BEYOND COLUMN J"]
[{"$nulls":10},0,0,0,0,0,null,null,"DO NOT DELETE BEYOND COLUMN J"]
[{"$nulls":10},0,0,0,0,0,null,null,"DO NOT DELETE BEYOND COLUMN J"]
[{"$nulls":10},0,0,0,0,0,null,null,"DO NOT DELETE BEYOND COLUMN J"]
[{"$nulls":10},0,0,0,0,0,null,null,"DO NOT DELETE BEYOND COLUMN J"]
[{"$nulls":10},0,0,0,0,0,null,null,"DO NOT DELETE BEYOND COLUMN J"]
[{"$nulls":10},0,0,0,0,0,null,null,"DO NOT DELETE BEYOND COLUMN J"]
[{"$nulls":10},0,0,0,0,0,null,null,"DO NOT DELETE BEYOND COLUMN J"]
[{"$nulls":10},0,0,0,0,0,null,null,"DO NOT DELETE BEYOND COLUMN J"]
[{"$nulls":10},0,0,0,0,0,null,null,"DO NOT DELETE BEYOND COLUMN J"]
[{"$nulls":10},0,0,0,0,0,null,null,"DO NOT DELETE BEYOND COLUMN J"]
[{"$nulls":10},0,0,0,0,0,null,null,"DO NOT DELETE BEYOND COLUMN J"]
[{"$nulls":10},0,0,0,0,0,null,null,"DO NOT DELETE BEYOND COLUMN J"]
[{"$nulls":10},0,0,0,0,0,null,null,"DO NOT DELETE BEYOND COLUMN J"]
[{"$nulls":10},0,0,0,0,0,null,null,"DO NOT DELETE BEYOND COLUMN J"]
[{"$nulls":10},0,0,0,0,0,null,null,"DO NOT DELETE BEYOND COLUMN J"]
[{"$nulls":10},0,0,0,0,0,null,null,"DO NOT DELETE BEYOND COLUMN J"]
[{"$nulls":10},{"$f":"A66","v":0},{"$f":"G66","v":0},{"$f":"H66","v":0},{"$f":"I66","v":0},{"$f":"J66","v":0},null,null,"DO NOT DELETE BEYOND COLUMN J"]
[{"$nulls":10},0,0,0,0,0,null,null,"DO NOT DELETE BEYOND COLUMN J"]
[{"$nulls":10},0,0,0,0,0,null,null,"DO NOT DELETE BEYOND COLUMN J"]
[{"$nulls":10},0,0,0,0,0,null,null,"DO NOT DELETE BEYOND COLUMN J"]
[{"$nulls":10},0,0,0,0,0,null,null,"DO NOT DELETE BEYOND COLUMN J"]
[{"$nulls":10},0,0,0,0,0,null,null,"DO NOT DELETE BEYOND COLUMN J"]
[{"$nulls":10},0,0,0,0,0,null,null,"DO NOT DELETE BEYOND COLUMN J"]
[{"$nulls":10},0,0,0,0,0,null,null,"DO NOT DELETE BEYOND COLUMN J"]
[{"$nulls":10},0,0,0,0,0,null,null,"DO NOT DELETE BEYOND COLUMN J"]
[{"$nulls":10},0,0,0,0,0,null,null,"DO NOT DELETE BEYOND COLUMN J"]
[{"$nulls":10},0,0,0,0,0,null,null,"DO NOT DELETE BEYOND COLUMN J"]
[{"$nulls":10},0,0,0,0,0,null,null,"DO NOT DELETE BEYOND COLUMN J"]
[{"$nulls":10},0,0,0,0,0,null,null,"DO NOT DELETE BEYOND COLUMN J"]
[{"$nulls":10},0,0,0,0,0,null,null,"DO NOT DELETE BEYOND COLUMN J"]
[{"$nulls":10},0,0,0,0,0,null,null,"DO NOT DELETE BEYOND COLUMN J"]
[{"$nulls":10},0,0,0,0,0,null,null,"DO NOT DELETE BEYOND COLUMN J"]
[{"$nulls":10},0,0,0,0,0,null,null,"DO NOT DELETE BEYOND COLUMN J"]
[{"$nulls":10},0,0,0,0,0,null,null,"DO NOT DELETE BEYOND COLUMN J"]
[{"$nulls":10},0,0,0,0,0,null,null,"DO NOT DELETE BEYOND COLUMN J"]
[{"$nulls":10},0,0,0,0,0,null,null,"DO NOT DELETE BEYOND COLUMN J"]
[{"$nulls":10},0,0,0,0,0,null,null,"DO NOT DELETE BEYOND COLUMN J"]
[{"$nulls":10},0,0,0,0,0,null,null,"DO NOT DELETE BEYOND COLUMN J"]
[{"$nulls":10},0,0,0,0,0,null,null,"DO NOT DELETE BEYOND COLUMN J"]
[{"$nulls":10},0,0,0,0,0,null,null,"DO NOT DELETE BEYOND COLUMN J"]
[{"$nulls":10},0,0,0,0,0,null,null,"DO NOT DELETE BEYOND COLUMN J"]
[{"$nulls":10},0,0,0,0,0,null,null,"DO NOT DELETE BEYOND COLUMN J"]
[{"$nulls":10},0,0,0,0,0,null,null,"DO NOT DELETE BEYOND COLUMN J"]
[{"$nulls":10},0,0,0,0,0,null,null,"DO NOT DELETE BEYOND COLUMN J"]
[{"$nulls":10},0,0,0,0,0,null,null,"DO NOT DELETE BEYOND COLUMN J"]
[{"$nulls":10},0,0,0,0,0,null,null,"DO NOT DELETE BEYOND COLUMN J"]
[{"$nulls":10},0,0,0,0,0,null,null,"DO NOT DELETE BEYOND COLUMN J"]
[{"$nulls":10},0,0,0,0,0,null,null,"DO NOT DELETE BEYOND COLUMN J"]
[{"$nulls":10},{"$f":"A98","v":0},{"$f":"G98","v":0},{"$f":"H98","v":0},{"$f":"I98","v":0},{"$f":"J98","v":0},null,null,"DO NOT DELETE BEYOND COLUMN J"]
[{"$nulls":10},0,0,0,0,0,null,null,"DO NOT DELETE BEYOND COLUMN J"]
[{"$nulls":10},0,0,0,0,0,null,null,"DO NOT DELETE BEYOND COLUMN J"]
[{"$nulls":10},0,0,0,0,0,null,null,"DO NOT DELETE BEYOND COLUMN J"]
[{"$nulls":10},0,0,0,0,0,null,null,"DO NOT DELETE BEYOND COLUMN J"]
[{"$nulls":10},0,0,0,0,0,null,null,"DO NOT DELETE BEYOND COLUMN J"]
[{"$nulls":10},0,0,0,0,0,null,null,"DO NOT DELETE BEYOND COLUMN J"]
[{"$nulls":10},0,0,0,0,0,null,null,"DO NOT DELETE BEYOND COLUMN J"]
[{"$nulls":10},0,0,0,0,0,null,null,"DO NOT DELETE BEYOND COLUMN J"]
[{"$nulls":10},0,0,0,0,0,null,null,"DO NOT DELETE BEYOND COLUMN J"]
[{"$nulls":10},0,0,0,0,0,null,null,"DO NOT DELETE BEYOND COLUMN J"]
[{"$nulls":10},0,0,0,0,0,null,null,"DO NOT DELETE BEYOND COLUMN J"]
[{"$nulls":10},0,0,0,0,0,null,null,"DO NOT DELETE BEYOND COLUMN J"]
[{"$nulls":10},0,0,0,0,0,null,null,"DO NOT DELETE BEYOND COLUMN J"]
[{"$nulls":10},0,0,0,0,0,null,null,"DO NOT DELETE BEYOND COLUMN J"]
[{"$nulls":10},0,0,0,0,0,null,null,"DO NOT DELETE BEYOND COLUMN J"]
[{"$nulls":10},0,0,0,0,0,null,null,"DO NOT DELETE BEYOND COLUMN J"]
[{"$nulls":10},0,0,0,0,0,null,null,"DO NOT DELETE BEYOND COLUMN J"]
[{"$nulls":10},0,0,0,0,0,null,null,"DO NOT DELETE BEYOND COLUMN J"]
[{"$nulls":10},0,0,0,0,0,null,null,"DO NOT DELETE BEYOND COLUMN J"]
[{"$nulls":10},0,0,0,0,0,null,null,"DO NOT DELETE BEYOND COLUMN J"]
[{"$nulls":10},0,0,0,0,0,null,null,"DO NOT DELETE BEYOND COLUMN J"]
[{"$nulls":10},0,0,0,0,0,null,null,"DO NOT DELETE BEYOND COLUMN J"]
[{"$nulls":10},0,0,0,0,0,null,null,"DO NOT DELETE BEYOND COLUMN J"]
[{"$nulls":10},0,0,0,0,0,null,null,"DO NOT DELETE BEYOND COLUMN J"]
[{"$nulls":10},0,0,0,0,0,null,null,"DO NOT DELETE BEYOND COLUMN J"]
[{"$nulls":10},0,0,0,0,0,null,null,"DO NOT DELETE BEYOND COLUMN J"]
[{"$nulls":10},0,0,0,0,0,null,null,"DO NOT DELETE BEYOND COLUMN J"]
[{"$nulls":10},0,0,0,0,0,null,null,"DO NOT DELETE BEYOND COLUMN J"]
[{"$nulls":10},0,0,0,0,0,null,null,"DO NOT DELETE BEYOND COLUMN J"]
[{"$nulls":10},0,0,0,0,0,null,null,"DO NOT DELETE BEYOND COLUMN J"]
[{"$nulls":10},0,0,0,0,0,null,null,"DO NOT DELETE BEYOND COLUMN J"]
[{"$nulls":10},{"$f":"A130","v":0},{"$f":"G130","v":0},{"$f":"H130","v":0},{"$f":"I130","v":0},{"$f":"J130","v":0},null,null,"DO NOT DELETE BEYOND COLUMN J"]
[{"$nulls":10},0,0,0,0,0,null,null,"DO NOT DELETE BEYOND COLUMN J"]
[{"$nulls":10},0,0,0,0,0,null,null,"DO NOT DELETE BEYOND COLUMN J"]
[{"$nulls":10},0,0,0,0,0,null,null,"DO NOT DELETE BEYOND COLUMN J"]
[{"$nulls":10},0,0,0,0,0,null,null,"DO NOT DELETE BEYOND COLUMN J"]
[{"$nulls":10},0,0,0,0,0,null,null,"DO NOT DELETE BEYOND COLUMN J"]
[{"$nulls":10},0,0,0,0,0,null,null,"DO NOT DELETE BEYOND COLUMN J"]
[{"$nulls":10},0,0,0,0,0,null,null,"DO NOT DELETE BEYOND COLUMN J"]
[{"$nulls":10},0,0,0,0,0,null,null,"DO NOT DELETE BEYOND COLUMN J"]
[{"$nulls":10},0,0,0,0,0,null,null,"DO NOT DELETE BEYOND COLUMN J"]
[{"$nulls":10},0,0,0,0,0,null,null,"DO NOT DELETE BEYOND COLUMN J"]
[{"$nulls":10},0,0,0,0,0,null,null,"DO NOT DELETE BEYOND COLUMN J"]
[{"$nulls":10},0,0,0,0,0,null,null,"DO NOT DELETE BEYOND COLUMN J"]
[{"$nulls":10},0,0,0,0,0,null,null,"DO NOT DELETE BEYOND COLUMN J"]
[{"$nulls":10},0,0,0,0,0,null,null,"DO NOT DELETE BEYOND COLUMN J"]
[{"$nulls":10},0,0,0,0,0,null,null,"DO NOT DELETE BEYOND COLUMN J"]
[{"$nulls":10},0,0,0,0,0,null,null,"DO NOT DELETE BEYOND COLUMN J"]
[{"$nulls":10},0,0,0,0,0,null,null,"DO NOT DELETE BEYOND COLUMN J"]
[{"$nulls":10},0,0,0,0,0,null,null,"DO NOT DELETE BEYOND COLUMN J"]
[{"$nulls":10},0,0,0,0,0,null,null,"DO NOT DELETE BEYOND COLUMN J"]
[{"$nulls":10},0,0,0,0,0,null,null,"DO NOT DELETE BEYOND COLUMN J"]
[{"$nulls":10},0,0,0,0,0,null,null,"DO NOT DELETE BEYOND COLUMN J"]
[{"$nulls":10},0,0,0,0,0,null,null,"DO NOT DELETE BEYOND COLUMN J"]
[{"$nulls":10},0,0,0,0,0,null,null,"DO NOT DELETE BEYOND COLUMN J"]
[{"$nulls":10},0,0,0,0,0,null,null,"DO NOT DELETE BEYOND COLUMN J"]
[{"$nulls":10},0,0,0,0,0,null,null,"DO NOT DELETE BEYOND COLUMN J"]
[{"$nulls":10},0,0,0,0,0,null,null,"DO NOT DELETE BEYOND COLUMN J"]
[{"$nulls":10},0,0,0,0,0,null,null,"DO NOT DELETE BEYOND COLUMN J"]
[{"$nulls":10},0,0,0,0,0,null,null,"DO NOT DELETE BEYOND COLUMN J"]
[{"$nulls":10},0,0,0,0,0,null,null,"DO NOT DELETE BEYOND COLUMN J"]
[{"$nulls":10},0,0,0,0,0,null,null,"DO NOT DELETE BEYOND COLUMN J"]
[{"$nulls":10},0,0,0,0,0,null,null,"DO NOT DELETE BEYOND COLUMN J"]
[{"$nulls":10},{"$f":"A162","v":0},{"$f":"G162","v":0},{"$f":"H162","v":0},{"$f":"I162","v":0},{"$f":"J162","v":0},null,null,"DO NOT DELETE BEYOND COLUMN J"]
[{"$nulls":10},0,0,0,0,0,null,null,"DO NOT DELETE BEYOND COLUMN J"]
[{"$nulls":10},0,0,0,0,0,null,null,"DO NOT DELETE BEYOND COLUMN J"]
[{"$nulls":10},0,0,0,0,0,null,null,"DO NOT DELETE BEYOND COLUMN J"]
[{"$nulls":10},0,0,0,0,0,null,null,"DO NOT DELETE BEYOND COLUMN J"]
[{"$nulls":10},0,0,0,0,0,null,null,"DO NOT DELETE BEYOND COLUMN J"]
[{"$nulls":10},0,0,0,0,0,null,null,"DO NOT DELETE BEYOND COLUMN J"]
[{"$nulls":10},0,0,0,0,0,null,null,"DO NOT DELETE BEYOND COLUMN J"]
[{"$nulls":10},0,0,0,0,0,null,null,"DO NOT DELETE BEYOND COLUMN J"]
[{"$nulls":10},0,0,0,0,0,null,null,"DO NOT DELETE BEYOND COLUMN J"]
[{"$nulls":10},0,0,0,0,0,null,null,"DO NOT DELETE BEYOND COLUMN J"]
[{"$nulls":10},0,0,0,0,0,null,null,"DO NOT DELETE BEYOND COLUMN J"]
[{"$nulls":10},0,0,0,0,0,null,null,"DO NOT DELETE BEYOND COLUMN J"]
[{"$nulls":10},0,0,0,0,0,null,null,"DO NOT DELETE BEYOND COLUMN J"]
[{"$nulls":10},0,0,0,0,0,null,null,"DO NOT DELETE BEYOND COLUMN J"]
[{"$nulls":10},0,0,0,0,0,null,null,"DO NOT DELETE BEYOND COLUMN J"]
[{"$nulls":10},0,0,0,0,0,null,null,"DO NOT DELETE BEYOND COLUMN J"]
[{"$nulls":10},0,0,0,0,0,null,null,"DO NOT DELETE BEYOND COLUMN J"]
[{"$nulls":10},0,0,0,0,0,null,null,"DO NOT DELETE BEYOND COLUMN J"]
[{"$nulls":10},0,0,0,0,0,null,null,"DO NOT DELETE BEYOND COLUMN J"]
[{"$nulls":10},0,0,0,0,0,null,null,"DO NOT DELETE BEYOND COLUMN J"]
[{"$nulls":10},0,0,0,0,0,null,null,"DO NOT DELETE BEYOND COLUMN J"]
[{"$nulls":10},0,0,0,0,0,null,null,"DO NOT DELETE BEYOND COLUMN J"]
[{"$nulls":10},0,0,0,0,0,null,null,"DO NOT DELETE BEYOND COLUMN J"]
[{"$nulls":10},0,0,0,0,0,null,null,"DO NOT DELETE BEYOND COLUMN J"]
[{"$nulls":10},0,0,0,0,0,null,null,"DO NOT DELETE BEYOND COLUMN J"]
[{"$nulls":10},0,0,0,0,0,null,null,"DO NOT DELETE BEYOND COLUMN J"]
[{"$nulls":10},0,0,0,0,0,null,null,"DO NOT DELETE BEYOND COLUMN J"]
[{"$nulls":10},0,0,0,0,0,null,null,"DO NOT DELETE BEYOND COLUMN J"]
[{"$nulls":10},0,0,0,0,0,null,null,"DO NOT DELETE BEYOND COLUMN J"]
[{"$nulls":10},0,0,0,0,0,null,null,"DO NOT DELETE BEYOND COLUMN J"]
[{"$nulls":10},0,0,0,0,0,null,null,"DO NOT DELETE BEYOND COLUMN J"]
[{"$nulls":10},{"$f":"A194","v":0},{"$f":"G194","v":0},{"$f":"H194","v":0},{"$f":"I194","v":0},{"$f":"J194","v":0},null,null,"DO NOT DELETE BEYOND COLUMN J"]
[{"$nulls":10},0,0,0,0,0,null,null,"DO NOT DELETE BEYOND COLUMN J"]
[{"$nulls":10},0,0,0,0,0,null,null,"DO NOT DELETE BEYOND COLUMN J"]
[{"$nulls":10},0,0,0,0,0,null,null,"DO NOT DELETE BEYOND COLUMN J"]
[{"$nulls":10},0,0,0,0,0,null,null,"DO NOT DELETE BEYOND COLUMN J"]
[{"$nulls":10},0,0,0,0,0,null,null,"DO NOT DELETE BEYOND COLUMN J"]
[{"$nulls":10},0,0,0,0,0,null,null,"DO NOT DELETE BEYOND COLUMN J"]

{"sheet":"Instructions","index":2,"n_rows":30,"n_cols":2,"rows_kept":30}
["This is an active personal address and telephone organiser for use at work or at home.  Written in Excel 2007."]
[]
["Once names and addresses (up to 200 at present)  have been entered in the database and put into alphabetical order, then on the address book page the entry of the name in the  "]
["box will give all the info of that contact"]
["Regular contacts can be entered and changed at will in the favourites boxes."]
["Set up the database - I've allowed for the search name to be something other than the formal name - such as Uncle Bob for Robert - Names in the \"Names\" column must be unique"]
["Telephone and fax numbers will be formatted as text by default"]
["Make sure that column A is completed.  "]
["It is essential to the program that column A is in strict alphabetical order so if you add contacts always sort the data."]
[]
["For those who need assistance with the sort here are some brief instructions."]
[]
[null,"Highlight all the cells within your database.  A1 to J200 is the max.  "]
[null,"From the Home tab"]
[null,"In the Editing Box"]
[null,"Select - Sort and Filter"]
[null,"Custom sort"]
[null,"Ensure the box \"My data has headers\" is checked"]
[null,"Boxes should state - Sort by \"Name\", Sort on \"Values\", Order \"A to Z\""]
[]
["I've protected obvious areas but I have not set a password so unprotecting the sheet is not a problem"]
["There's a notepad which is simply merged cells rather than a text box.  Text will wrap from top left to bottom right."]
["If you want you could add your own calendar beneath the favourites boxes."]
[]
["Russell Dawson"]
["December 2009"]
[]
["Look out for other creations such as the Employee absence record.  An active record of annual and sick leave of staff.  One page per employee. "]
[]
["ANY PROBLEMS - LET ME KNOW PLEASE"]